fUSD/lending_fUSD_20260514
["ID","MTS","AMOUNT","RATE_DAILY","PERIOD"]
[422242438,1778754186000,-46.61181272,0.00010325,2]
[422242436,1778754186000,-542.0,0.00010325,2]
[422242437,1778754186000,-542.0,0.00010325,2]
[422242435,1778754186000,-368.67341266,0.00010325,2]
[422242434,1778754186000,-542.0,0.00010325,2]
[422242439,1778754186000,-453.38818728,0.00010325,2]
[422242465,1778754187000,-150.0,0.00010327,2]
[422242463,1778754187000,-500.0,0.00010325,2]
[422242460,1778754187000,-500.0,0.00010325,2]
[422242462,1778754187000,-210.60844671,0.00010325,2]
[422242461,1778754187000,-176.90584859,0.00010325,2]
[422242459,1778754187000,-500.0,0.00010325,2]
[422242456,1778754187000,-150.0,0.00010325,2]
[422242453,1778754187000,-542.0,0.00010325,2]
[422242458,1778754187000,-222.04457523,0.00010325,2]
[422242455,1778754187000,-177.51977987,0.00010325,2]
[422242452,1778754187000,-542.0,0.00010325,2]
[422242454,1778754187000,-553.19284094,0.00010325,2]
[422242451,1778754187000,-542.0,0.00010325,2]
[422242450,1778754187000,-542.0,0.00010325,2]
[422242464,1778754187000,-590.8172916,0.00010325,2]
[422242457,1778754187000,-150.0,0.00010325,2]
[422242466,1778754187000,-4138.99,0.00010329,2]
[422242483,1778754187000,-500.0,0.00010599,2]
[422242469,1778754187000,-4710.91541404,0.000104,2]
[422242482,1778754187000,-500.0,0.00010599,2]
[422242484,1778754187000,-500.0,0.00010599,2]
[422242481,1778754187000,-500.0,0.00010599,2]
[422242480,1778754187000,-151.0,0.00010597,2]
[422242478,1778754187000,-1537.6599926,0.00010596,2]
[422242479,1778754187000,-249.3222068,0.00010596,2]
[422242477,1778754187000,-254.57845767,0.0001059,2]
[422242467,1778754187000,-1844.33,0.00010343,2]
[422242474,1778754187000,-6581.15250274,0.000105,2]
[422242475,1778754187000,-2500.0,0.000105,2]
[422242473,1778754187000,-25000.0,0.000105,2]
[422242472,1778754187000,-1590.73289726,0.000105,2]
[422242471,1778754187000,-537.6869,0.000105,2]
[422242470,1778754187000,-150.0,0.00010427,2]
[422242468,1778754187000,-500.0,0.00010344,2]
[422242476,1778754187000,-1423.05,0.00010529,2]
[422242500,1778754188000,-500.0,0.00010599,2]
[422242498,1778754188000,-500.0,0.00010599,2]
[422242497,1778754188000,-500.0,0.00010599,2]
[422242496,1778754188000,-500.0,0.00010599,2]
[422242495,1778754188000,-500.0,0.00010599,2]
[422242494,1778754188000,-500.0,0.00010599,2]
[422242493,1778754188000,-500.0,0.00010599,2]
[422242490,1778754188000,-500.0,0.00010599,2]
[422242491,1778754188000,-500.0,0.00010599,2]
[422242489,1778754188000,-500.0,0.00010599,2]
[422242488,1778754188000,-500.0,0.00010599,2]
[422242485,1778754188000,-500.0,0.00010599,2]
[422242487,1778754188000,-500.0,0.00010599,2]
[422242499,1778754188000,-500.0,0.00010599,2]
[422242492,1778754188000,-500.0,0.00010599,2]
[422242486,1778754188000,-500.0,0.00010599,2]
[422242501,1778754188000,-500.0,0.00010599,2]
[422242502,1778754188000,-500.0,0.00010599,2]
[422242504,1778754188000,-500.0,0.00010599,2]
[422242516,1778754188000,-500.0,0.00010599,2]
[422242517,1778754188000,-500.0,0.00010599,2]
[422242515,1778754188000,-348.92048894,0.00010599,2]
[422242514,1778754188000,-500.0,0.00010599,2]
[422242511,1778754188000,-500.0,0.00010599,2]
[422242512,1778754188000,-500.0,0.00010599,2]
[422242513,1778754188000,-500.0,0.00010599,2]
[422242508,1778754188000,-500.0,0.00010599,2]
[422242509,1778754188000,-500.0,0.00010599,2]
[422242507,1778754188000,-500.0,0.00010599,2]
[422242505,1778754188000,-303.23684019,0.00010599,2]
[422242506,1778754188000,-196.76315981,0.00010599,2]
[422242503,1778754188000,-500.0,0.00010599,2]
[422242510,1778754188000,-500.0,0.00010599,2]
[422242527,1778754189000,-500.0,0.00010599,2]
[422242532,1778754189000,-500.0,0.00010599,2]
[422242530,1778754189000,-500.0,0.00010599,2]
[422242529,1778754189000,-500.0,0.00010599,2]
[422242528,1778754189000,-500.0,0.00010599,2]
[422242525,1778754189000,-500.0,0.00010599,2]
[422242518,1778754189000,-500.0,0.00010599,2]
[422242522,1778754189000,-500.0,0.00010599,2]
[422242524,1778754189000,-500.0,0.00010599,2]
[422242523,1778754189000,-500.0,0.00010599,2]
[422242519,1778754189000,-500.0,0.00010599,2]
[422242521,1778754189000,-500.0,0.00010599,2]
[422242520,1778754189000,-175.36745179,0.00010599,2]
[422242531,1778754189000,-350.0,0.00010599,2]
[422242533,1778754189000,-500.0,0.00010599,2]
[422242526,1778754189000,-500.0,0.00010599,2]
[422242537,1778754189000,-500.0,0.00010599,2]
[422242549,1778754189000,-500.0,0.00010599,2]
[422242550,1778754189000,-500.0,0.00010599,2]
[422242548,1778754189000,-500.0,0.00010599,2]
[422242546,1778754189000,-500.0,0.00010599,2]
[422242547,1778754189000,-500.0,0.00010599,2]
[422242545,1778754189000,-500.0,0.00010599,2]
[422242544,1778754189000,-500.0,0.00010599,2]
[422242534,1778754189000,-320.6311339,0.00010599,2]
[422242542,1778754189000,-500.0,0.00010599,2]
[422242535,1778754189000,-1985.367,0.00010599,2]
[422242536,1778754189000,-158.04,0.00010599,2]
[422242538,1778754189000,-500.0,0.00010599,2]
[422242543,1778754189000,-500.0,0.00010599,2]
[422242540,1778754189000,-500.0,0.00010599,2]
[422242541,1778754189000,-500.0,0.00010599,2]
[422242539,1778754189000,-555.38725281,0.00010599,2]
[422242552,1778754190000,-500.0,0.00010599,2]
[422242553,1778754190000,-500.0,0.00010599,2]
[422242555,1778754190000,-409.52351275,0.00010599,2]
[422242556,1778754190000,-90.47648725,0.00010599,2]
[422242557,1778754190000,-500.0,0.00010599,2]
[422242559,1778754190000,-23909.52351275,0.000106,2]
[422242551,1778754190000,-500.0,0.00010599,2]
[422242560,1778754190000,-25000.0,0.000106,2]
[422242558,1778754190000,-500.0,0.00010599,2]
[422242566,1778754190000,-24309.43279575,0.0001054,2]
[422242565,1778754190000,-690.56720425,0.000104,2]
[422242564,1778754190000,-25000.0,0.0001054,2]
[422242554,1778754190000,-500.0,0.00010599,2]
[422242563,1778754190000,-25000.0,0.0001054,2]
[422242561,1778754190000,-25000.0,0.000106,2]
[422242562,1778754190000,-25000.0,0.000106,2]
[422242567,1778754191000,-25000.0,0.0001054,2]
[422242568,1778754192000,-25000.0,0.0001054,2]
[422242569,1778754193000,-25000.0,0.0001054,2]
[422242570,1778754194000,-25000.0,0.0001054,2]
[422242571,1778754195000,-25000.0,0.0001054,2]
[422242574,1778754225000,-500.0,0.00010226,2]
[422242581,1778754225000,-500.0,0.00010226,2]
[422242575,1778754225000,-500.0,0.00010226,2]
[422242576,1778754225000,-500.0,0.00010226,2]
[422242578,1778754225000,-500.0,0.00010226,2]
[422242579,1778754225000,-500.0,0.00010226,2]
[422242577,1778754225000,-500.0,0.00010226,2]
[422242580,1778754225000,-500.0,0.00010226,2]
[422242582,1778754225000,-500.0,0.00010226,2]
[422242572,1778754225000,-500.0,0.00010226,2]
[422242573,1778754225000,-500.0,0.00010226,2]
[422242583,1778754225000,-500.0,0.00010226,2]
[422242585,1778754225000,-500.0,0.00010226,2]
[422242584,1778754225000,-500.0,0.00010226,2]
[422242595,1778754225000,-11732.31841221,0.0001054,2]
[422242594,1778754225000,-171.59043307,0.00010518,2]
[422242593,1778754225000,-2000.0,0.00010431,2]
[422242591,1778754225000,-1588.294,0.00010388,2]
[422242587,1778754225000,-500.0,0.00010226,2]
[422242590,1778754225000,-349.75715472,0.00010226,2]
[422242589,1778754225000,-500.0,0.00010226,2]
[422242588,1778754225000,-500.0,0.00010226,2]
[422242592,1778754225000,-158.04,0.00010388,2]
[422242586,1778754225000,-500.0,0.00010226,2]
[422242596,1778754228000,-25000.0,0.0001054,2]
[422242598,1778754240000,500.0,9.927e-05,2]
[422242600,1778754274000,-150.0,0.00010068,2]
[422242602,1778754274000,-150.0,0.00010068,2]
[422242601,1778754274000,-150.0,0.00010068,2]
[422242599,1778754274000,-150.0,0.00010068,2]
[422242604,1778754274000,-165.0,0.00010408,2]
[422242605,1778754274000,-23950.53100679,0.000105,2]
[422242606,1778754274000,-9221.35439321,0.000105,2]
[422242603,1778754274000,-284.46899321,0.00010068,2]
[422242607,1778754275000,-5980.4815,0.000105,2]
[422242608,1778754275000,-1226.40814349,0.0001053,2]
[422242610,1778754275000,-150.0,0.00010539,2]
[422242611,1778754275000,-8121.7559633,0.0001054,2]
[422242612,1778754275000,-25000.0,0.0001054,2]
[422242613,1778754275000,-25000.0,0.0001054,2]
[422242609,1778754275000,-300.0,0.00010539,2]
[422242614,1778754283000,330.0,0.00011918,3]
[422242615,1778754336000,500.0,0.00027397,120]
[422242618,1778754363000,-2000.0,0.000105,2]
[422242619,1778754363000,-746.83,0.000105,2]
[422242617,1778754363000,-300.0,0.00010499,2]
[422242616,1778754363000,-244.18,0.00010398,2]
[422242620,1778754365000,446.16,0.00027397,120]
[422242621,1778754395000,500.0,9.927e-05,2]
[422242622,1778754427000,297.44,0.00027397,120]
[422242623,1778754429000,330.0,0.00010603,3]
[422242624,1778754433000,700.0,0.000107,3]
[422242626,1778754435000,1500.0,0.000108,3]
[422242627,1778754437000,2300.0,0.000109,3]
[422242628,1778754439000,3000.0,0.000119,4]
[422242630,1778754472000,3884.0,0.00011776,5]
[422242631,1778754479000,16386.62,9.976e-05,2]
[422242633,1778754489000,198.29,0.00027397,120]
[422242637,1778754549000,198.29,0.00027397,120]
[422242639,1778754557000,-595.8008,0.00010044,2]
[422242640,1778754596000,150.0,9.743e-05,2]
[422242641,1778754602000,2346.19,9.912e-05,2]
[422242642,1778754613000,198.3,0.00027397,120]
[422242643,1778754632000,152.0,0.00013706,7]
[422242653,1778754633000,-1415.24878148,0.000105,2]
[422242657,1778754633000,-500.0,0.00010539,2]
[422242654,1778754633000,-33171.8854,0.000105,2]
[422242656,1778754633000,-9861.5995752,0.0001052,2]
[422242655,1778754633000,-2000.0,0.000105,2]
[422242650,1778754633000,-778.59,0.00010402,2]
[422242651,1778754633000,-1200.0,0.00010499,2]
[422242662,1778754633000,-500.0,0.00010539,2]
[422242647,1778754633000,-363.9192,0.00010044,2]
[422242648,1778754633000,-152.0,0.00010118,2]
[422242644,1778754633000,152.0,0.00013706,7]
[422242652,1778754633000,-150.0,0.00010499,2]
[422242649,1778754633000,-959.72,0.00010295,2]
[422242661,1778754633000,-500.0,0.00010539,2]
[422242660,1778754633000,-500.0,0.00010539,2]
[422242683,1778754633000,-1254.41808677,0.0001054,2]
[422242678,1778754633000,-41871.54019337,0.0001054,2]
[422242676,1778754633000,-23650.85951238,0.0001054,2]
[422242674,1778754633000,-105305.49730559,0.0001054,2]
[422242671,1778754633000,-500.0,0.00010539,2]
[422242681,1778754633000,-96282.35689687,0.0001054,2]
[422242663,1778754633000,-500.0,0.00010539,2]
[422242667,1778754633000,-500.0,0.00010539,2]
[422242664,1778754633000,-521.13602594,0.00010539,2]
[422242666,1778754633000,-500.0,0.00010539,2]
[422242659,1778754633000,-500.0,0.00010539,2]
[422242669,1778754633000,-500.0,0.00010539,2]
[422242658,1778754633000,-500.0,0.00010539,2]
[422242692,1778754638000,-142.20242179,0.0001054,2]
[422242690,1778754638000,-202467.47936954,0.0001054,2]
[422242691,1778754638000,-673.23158016,0.0001054,2]
[422242707,1778754640000,-4416.33433234,0.0001054,2]
[422242716,1778754643000,-1928.86045484,0.0001054,2]
[422242717,1778754645000,-1233.21969338,0.0001054,2]
[422242718,1778754645000,-2037.92341079,0.0001054,2]
[422242719,1778754646000,-3255.56448508,0.0001054,2]
[422242746,1778754656000,152.0,0.00013705,7]
[422242747,1778754657000,152.0,0.00013705,7]
[422242748,1778754678000,568.3,0.00027397,120]
[422242749,1778754697000,152.0,0.00013714,7]
[422242750,1778754717000,150.0,9.815e-05,2]
[422242751,1778754728000,330.0,8.219e-05,3]
[422242752,1778754741000,162.8,8.155e-05,2]
[422242775,1778754802000,1000.0,9.999e-05,2]
[422242776,1778754858000,235.33,9.999e-05,2]
[422242777,1778754865000,-190.42723672,0.00010119,2]
[422242778,1778754865000,-152.0,0.00010119,2]
[422242780,1778754865000,-178.42,0.0001022,2]
[422242779,1778754865000,-200.39842734,0.00010119,2]
[422242785,1778754865000,-300.0,0.00010539,2]
[422242782,1778754865000,-151.0,0.00010537,2]
[422242783,1778754865000,-229.0,0.00010539,2]
[422242786,1778754865000,-6522.21433594,0.0001054,2]
[422242781,1778754865000,-1926.54,0.0001022,2]
[422242784,1778754865000,-150.0,0.00010539,2]
[422242787,1778754866000,-10000.0,0.0001054,2]
[422242788,1778754867000,-10000.0,0.0001054,2]
[422242790,1778754867000,-10000.0,0.0001054,2]
[422242789,1778754867000,-10000.0,0.0001054,2]
[422242792,1778754868000,-10000.0,0.0001054,2]
[422242791,1778754868000,-10000.0,0.0001054,2]
[422242793,1778754869000,-10000.0,0.0001054,2]
[422242794,1778754870000,-10000.0,0.0001054,2]
[422242796,1778754871000,-10000.0,0.0001054,2]
[422242795,1778754871000,-10000.0,0.0001054,2]
[422242797,1778754872000,-10000.0,0.0001054,2]
[422242799,1778754873000,-10000.0,0.0001054,2]
[422242798,1778754873000,-10000.0,0.0001054,2]
[422242800,1778754874000,-10000.0,0.0001015,2]
[422242801,1778754875000,-10000.0,0.0001015,2]
[422242803,1778754877000,-9125.86,0.0001054,2]
[422242802,1778754877000,-874.14,0.0001015,2]
[422242804,1778754878000,199.7195,0.00010019,2]
[422242807,1778754895000,-1850.74774169,0.0001054,2]
[422242806,1778754895000,-1014.33045862,0.00010539,2]
[422242805,1778754895000,-1590.92179969,0.00010539,2]
[422242808,1778754901000,800.0,0.000119,4]
[422242809,1778754911000,150.35,5.242e-05,2]
[422242810,1778754911000,150.35,5.578e-05,2]
[422242813,1778754911000,150.35,6.585e-05,2]
[422242812,1778754911000,150.35,6.249e-05,2]
[422242811,1778754911000,150.35,5.913e-05,2]
[422242817,1778754912000,150.35,7.928e-05,2]
[422242816,1778754912000,150.35,7.592e-05,2]
[422242815,1778754912000,150.35,7.256e-05,2]
[422242814,1778754912000,150.35,6.921e-05,2]
[422242818,1778754913000,150.35,8.264e-05,2]
[422242819,1778754913000,150.35,8.6e-05,2]
[422242822,1778754913000,150.35,9.607e-05,2]
[422242821,1778754913000,150.35,9.271e-05,2]
[422242820,1778754913000,150.35,8.935e-05,2]
[422242823,1778754914000,150.35,9.943e-05,2]
[422242824,1778754965000,-265.5026831,0.0001003,2]
[422242825,1778754971000,1817.78,9.962e-05,2]
[422242826,1778755062000,111360.28,9.916e-05,2]
[422242827,1778755070000,16414.95,9.916e-05,2]
[422242828,1778755081000,1844.33,9.818e-05,2]
[422242829,1778755100000,330.0,0.00010603,3]
[422242830,1778755120000,223.3,9.901e-05,2]
[422242831,1778755122000,302.57,9.793e-05,2]
[422242832,1778755144000,2000.0,9.824e-05,2]
[422242833,1778755164000,2215.72,9.791e-05,2]
[422242834,1778755189000,500.0,0.00027397,120]
[422242835,1778755223000,1370.34,0.00027397,120]
[422242837,1778755248000,155.55,9.661e-05,2]
[422242838,1778755332000,330.0,0.00010603,3]
[422242839,1778755340000,200.0,9.557e-05,2]
[422242840,1778755383000,81095.39,9.534e-05,2]
[422242841,1778755394000,376.58402949,0.00013661,7]
[422242842,1778755398000,282.43802212,0.00025797,120]
[422242843,1778755400000,-220.36,0.0001003,2]
[422242844,1778755437000,5770.18,9.557e-05,2]
[422242845,1778755451000,166.66,9.89e-05,2]
[422242848,1778755479000,530.15605317,0.0001002,2]
[422242849,1778755488000,330.0,0.00010603,3]
[422242850,1778755541000,261.2,9.54e-05,2]
[422242851,1778755554000,1152.64,9.573e-05,2]
[422242852,1778755557000,500.0,9.438e-05,2]
[422242853,1778755562000,167.0,9.712e-05,2]
[422242854,1778755632000,1200.0,0.000109,3]
[422242857,1778755632000,542.0,9.952e-05,2]
[422242856,1778755632000,542.0,9.952e-05,2]
[422242855,1778755632000,542.0,9.952e-05,2]
[422242861,1778755633000,507.46289621,9.952e-05,2]
[422242859,1778755633000,500.0,9.952e-05,2]
[422242858,1778755633000,542.0,9.952e-05,2]
[422242862,1778755633000,542.0,9.952e-05,2]
[422242863,1778755633000,500.0,9.952e-05,2]
[422242860,1778755633000,500.0,9.952e-05,2]
[422242865,1778755633000,500.0,9.952e-05,2]
[422242866,1778755633000,542.0,9.952e-05,2]
[422242869,1778755633000,500.0,9.952e-05,2]
[422242867,1778755633000,500.0,9.952e-05,2]
[422242868,1778755633000,542.0,9.952e-05,2]
[422242864,1778755633000,542.0,9.952e-05,2]
[422242870,1778755634000,542.0,9.952e-05,2]
[422242871,1778755634000,478.31810417,9.952e-05,2]
[422242872,1778755634000,542.0,9.952e-05,2]
[422242873,1778755634000,542.0,9.952e-05,2]
[422242874,1778755634000,542.0,9.952e-05,2]
[422242875,1778755634000,542.0,9.952e-05,2]
[422242876,1778755634000,500.0,9.952e-05,2]
[422242877,1778755634000,542.0,9.952e-05,2]
[422242878,1778755634000,500.0,9.952e-05,2]
[422242879,1778755635000,542.0,9.952e-05,2]
[422242880,1778755635000,500.0,9.952e-05,2]
[422242883,1778755635000,500.0,9.952e-05,2]
[422242882,1778755635000,500.0,9.952e-05,2]
[422242881,1778755635000,542.0,9.952e-05,2]
[422242885,1778755635000,500.0,9.952e-05,2]
[422242886,1778755635000,500.0,9.952e-05,2]
[422242888,1778755635000,542.0,9.952e-05,2]
[422242887,1778755635000,531.02212793,9.952e-05,2]
[422242889,1778755635000,500.0,9.952e-05,2]
[422242884,1778755635000,500.0,9.952e-05,2]
[422242891,1778755636000,542.0,9.952e-05,2]
[422242890,1778755636000,368.67341266,9.952e-05,2]
[422242892,1778755637000,542.0,9.952e-05,2]
[422242894,1778755638000,500.0,9.952e-05,2]
[422242893,1778755638000,500.0,9.952e-05,2]
[422242896,1778755638000,542.0,9.952e-05,2]
[422242897,1778755638000,500.0,9.952e-05,2]
[422242895,1778755638000,500.0,9.952e-05,2]
[422242901,1778755639000,500.0,9.952e-05,2]
[422242900,1778755639000,500.0,9.952e-05,2]
[422242899,1778755639000,500.0,9.952e-05,2]
[422242898,1778755639000,500.0,9.952e-05,2]
[422242903,1778755640000,542.0,9.952e-05,2]
[422242902,1778755640000,440.86781848,9.952e-05,2]
[422242904,1778755642000,542.0,9.952e-05,2]
[422242905,1778755644000,542.0,9.952e-05,2]
[422242906,1778755647000,553.19284094,9.952e-05,2]
[422242908,1778755687000,177.51977987,9.952e-05,2]
[422242910,1778755688000,150.0,9.952e-05,2]
[422242911,1778755688000,222.04457523,9.952e-05,2]
[422242909,1778755688000,150.0,9.952e-05,2]
[422242913,1778755688000,500.0,9.952e-05,2]
[422242912,1778755688000,500.0,9.952e-05,2]
[422242914,1778755688000,500.0,9.952e-05,2]
[422242918,1778755689000,176.90584859,9.952e-05,2]
[422242917,1778755689000,500.0,9.952e-05,2]
[422242915,1778755689000,287.87474412,9.952e-05,2]
[422242916,1778755689000,500.0,9.952e-05,2]
[422242924,1778755690000,500.0,9.952e-05,2]
[422242923,1778755690000,500.0,9.952e-05,2]
[422242922,1778755690000,500.0,9.952e-05,2]
[422242921,1778755690000,500.0,9.952e-05,2]
[422242920,1778755690000,500.0,9.952e-05,2]
[422242919,1778755690000,200.74458687,9.952e-05,2]
[422242925,1778755691000,326.50034264,9.952e-05,2]
[422242926,1778755691000,500.0,9.952e-05,2]
[422242927,1778755691000,500.0,9.952e-05,2]
[422242929,1778755692000,497.26908134,9.952e-05,2]
[422242928,1778755692000,500.0,9.952e-05,2]
[422242930,1778755723000,592.5,9.541e-05,2]
[422242931,1778755780000,500.0,9.574e-05,2]
[422242932,1778755788000,353.43736878,9.928e-05,2]
[422242933,1778755794000,353.43736877,9.994e-05,2]
[422242935,1778755805000,150.0,9.952e-05,2]
[422242934,1778755805000,500.0,9.952e-05,2]
[422242937,1778755806000,150.0,9.952e-05,2]
[422242938,1778755806000,171.8467304,9.952e-05,2]
[422242939,1778755806000,500.0,9.952e-05,2]
[422242936,1778755806000,500.0,9.952e-05,2]
[422242941,1778755806000,500.0,9.952e-05,2]
[422242940,1778755806000,150.0,9.952e-05,2]
[422242944,1778755806000,182.63545441,9.952e-05,2]
[422242942,1778755806000,252.82730704,9.952e-05,2]
[422242943,1778755806000,500.0,9.952e-05,2]
[422242948,1778755807000,619.59512894,9.952e-05,2]
[422242947,1778755807000,500.0,9.952e-05,2]
[422242946,1778755807000,500.0,9.952e-05,2]
[422242945,1778755807000,500.0,9.952e-05,2]
[422242949,1778755815000,250.4,9.574e-05,2]
[422242950,1778755822000,3531.0,9.558e-05,2]
[422242990,1778755833000,-716.0,0.00010159,2]
[422242994,1778755833000,-716.0,0.00010159,2]
[422242992,1778755833000,-716.0,0.00010159,2]
[422242988,1778755833000,-716.0,0.00010159,2]
[422242983,1778755833000,-716.0,0.00010159,2]
[422242986,1778755833000,-716.0,0.00010159,2]
[422242991,1778755833000,-716.0,0.00010159,2]
[422242989,1778755833000,-716.0,0.00010159,2]
[422242996,1778755833000,-716.0,0.00010159,2]
[422242984,1778755833000,-716.0,0.00010159,2]
[422242997,1778755833000,-716.0,0.00010159,2]
[422243008,1778755833000,-724.82399749,0.00010159,2]
[422242998,1778755833000,-716.0,0.00010159,2]
[422242995,1778755833000,-716.0,0.00010159,2]
[422243000,1778755833000,-716.0,0.00010159,2]
[422243003,1778755833000,-716.0,0.00010159,2]
[422243001,1778755833000,-716.0,0.00010159,2]
[422243002,1778755833000,-716.0,0.00010159,2]
[422243004,1778755833000,-716.0,0.00010159,2]
[422243005,1778755833000,-716.0,0.00010159,2]
[422243006,1778755833000,-716.0,0.00010159,2]
[422243007,1778755833000,-716.0,0.00010159,2]
[422242981,1778755833000,-716.0,0.00010159,2]
[422242999,1778755833000,-716.0,0.00010159,2]
[422242980,1778755833000,-298.59343092,0.00010159,2]
[422242960,1778755833000,-190.42723672,0.00010029,2]
[422242979,1778755833000,-150.0,0.00010159,2]
[422243009,1778755833000,-150.0,0.00010159,2]
[422242953,1778755833000,-287.06431718,0.00010027,2]
[422242955,1778755833000,-300.0,0.00010028,2]
[422242954,1778755833000,-1607.47568282,0.00010027,2]
[422242957,1778755833000,-300.0,0.00010028,2]
[422242958,1778755833000,-1200.0,0.00010028,2]
[422242956,1778755833000,-300.0,0.00010028,2]
[422242959,1778755833000,-150.0,0.00010029,2]
[422242961,1778755833000,-35606.02476895,0.0001003,2]
[422242962,1778755833000,-353.43736877,0.00010059,2]
[422242964,1778755833000,-150.0,0.00010127,2]
[422242963,1778755833000,-1871.2249,0.0001012,2]
[422242965,1778755833000,-500.0,0.00010159,2]
[422242966,1778755833000,-150.0,0.00010159,2]
[422242967,1778755833000,-150.0,0.00010159,2]
[422242969,1778755833000,-273.30264021,0.00010159,2]
[422242968,1778755833000,-150.0,0.00010159,2]
[422242970,1778755833000,-150.0,0.00010159,2]
[422242973,1778755833000,-500.0,0.00010159,2]
[422242972,1778755833000,-500.0,0.00010159,2]
[422242971,1778755833000,-175.41101549,0.00010159,2]
[422242975,1778755833000,-592.04750986,0.00010159,2]
[422242977,1778755833000,-150.0,0.00010159,2]
[422242978,1778755833000,-150.0,0.00010159,2]
[422243010,1778755833000,-150.0,0.00010159,2]
[422243029,1778755833000,-351.0,0.0001023,2]
[422243013,1778755833000,-9999.99,0.00010159,2]
[422243037,1778755833000,-500.0,0.00010433,2]
[422243042,1778755833000,-184.1,0.00010514,2]
[422243040,1778755833000,-98962.4820475,0.00010514,2]
[422243043,1778755833000,-150.0,0.00010528,2]
[422243047,1778755833000,-184.1,0.0001054,2]
[422243044,1778755833000,-1894.54,0.00010529,2]
[422243046,1778755833000,-184.1,0.0001054,2]
[422243045,1778755833000,-34237.08881761,0.0001054,2]
[422243048,1778755833000,-2000.0,0.000106,2]
[422243049,1778755833000,-28311.6179,0.000106,2]
[422243053,1778755833000,-151.0,0.00010697,2]
[422243050,1778755833000,-169.0,0.00010658,2]
[422243054,1778755833000,-151.0,0.00010697,2]
[422243051,1778755833000,-500.0,0.00010658,2]
[422243055,1778755833000,-386764.05568492,0.000107,2]
[422243056,1778755833000,-730.109977,0.000107,2]
[422243058,1778755833000,-730.109977,0.000107,2]
[422243063,1778755833000,-1426.496164,0.000107,2]
[422243057,1778755833000,-730.109977,0.000107,2]
[422243059,1778755833000,-730.109977,0.000107,2]
[422243060,1778755833000,-1426.496164,0.000107,2]
[422243061,1778755833000,-1426.496164,0.000107,2]
[422243011,1778755833000,-271.0364651,0.00010159,2]
[422243041,1778755833000,-184.1,0.00010514,2]
[422243034,1778755833000,-150.0,0.00010427,2]
[422243052,1778755833000,-500.0,0.00010658,2]
[422243038,1778755833000,-590.8172916,0.00010433,2]
[422243039,1778755833000,-14694.4830487,0.00010514,2]
[422243015,1778755833000,-299.99,0.00010159,2]
[422243012,1778755833000,-2582.4,0.00010159,2]
[422243014,1778755833000,-24999.99,0.00010159,2]
[422243017,1778755833000,-7394.65,0.00010159,2]
[422243016,1778755833000,-314.3,0.00010159,2]
[422243020,1778755833000,-150.0,0.00010227,2]
[422243019,1778755833000,-9999.99,0.00010159,2]
[422243022,1778755833000,-2197.21,0.0001023,2]
[422243028,1778755833000,-9999.99,0.0001023,2]
[422243024,1778755833000,-999.99,0.0001023,2]
[422243018,1778755833000,-1195.6,0.00010159,2]